Cogmind - Beta 11.1 @@@ ROGUE MODE // 2022.05.22 @ 13:49:39 Player: Jezoensis Result: Destroyed by as-81495 with Assembled Rifle Performance ------------- Evolutions (0) 0 Regions Visited (2) 400 Robots Destroyed (20) 100 Value Destroyed (426) 426 Prototype IDs (2) 40 Alien Tech Used (0) 0 Bonus (0) 0 TOTAL SCORE: 966 Bonus ------- None Cogmind --------- Core Integrity 0/250 Matter 97/300 Energy 81/100 System Corruption 0% Temperature Cool (0) Movement Treading (240) Ox1 Location -10/Mines Parts ------- > --- POWER (1) -------- (None) > --- PROPULSION (2) --- Light Treads Wheel > --- UTILITY (2) ------ Large Storage Unit Improved Terrain Scanner > --- WEAPON (2) ------- Assault Rifle Assault Rifle > --- INVENTORY (15) --- Light Nuclear Core Light Treads Light Treads Armored Wheel Armored Wheel Cooling System Assault Rifle Assault Rifle Assault Rifle Assault Rifle Mining Laser Shock Trap Shock Trap Shock Trap Peak State ------------ > --- POWER ------------ Light Nuclear Core > --- PROPULSION ------- Wheel Wheel > --- UTILITY ---------- Large Storage Unit Improved Terrain Scanner > --- WEAPON ----------- Assault Rifle Assault Rifle > --- INVENTORY -------- Light Nuclear Core Light Treads Light Treads Light Treads Wheel Armored Wheel Armored Wheel Cooling System Assault Rifle Assault Rifle Assault Rifle Assault Rifle Assault Rifle Assault Rifle Mining Laser [Rating: 13] Favorites ----------- Power Ion Engine Engine Ion Engine Power Core Light Nuclear Core Propulsion Wheel Treads Light Treads Wheel Wheel Utility Improved Terrain Scanner Device Improved Terrain Scanner Storage Large Storage Unit Weapon Assault Rifle Ballistic Gun Assault Rifle Special Weapon Mining Laser Build | -11 -10 -10 ------- Run | Scr Mat Min Slots Evolved . | . . . Power . | . . . Propulsion . | . . . Utility . | . . . Weapon . | . . . Parts Attached 34 | 9 22 3 Power 3 | 1 2 . Engine 2 | 1 1 . Core 1 | . 1 . Reactor . | . . . Propulsion 8 | 4 3 1 Treads 1 | . . 1 Leg . | . . . Wheel 7 | 4 3 . Hover . | . . . Flight . | . . . Utility 14 | 2 12 . Device 11 | 1 10 . Storage 3 | 1 2 . Processor . | . . . Hackware . | . . . Protection . | . . . Artifact . | . . . Weapon 9 | 2 5 2 Energy Gun . | . . . Energy Cannon . | . . . Ballistic Gun 8 | 2 4 2 Ballistic Cannon . | . . . Launcher . | . . . Special Weapon 1 | . 1 . Impact Weapon . | . . . Slashing Weapon . | . . . Piercing Weapon . | . . . Special Melee Weapon . | . . . Unidentified Prototypes . | . . . Parts Lost 2 | . . 2 Power 1 | . . 1 Propulsion 1 | . . 1 Utility . | . . . Weapon . | . . . Highest Loss Streak 2 | . . 2 To Critical Strikes . | . . . Average Slot Usage (%) 100 | . 100 100 Engine 9 | . 10 . Core 4 | . 3 14 Wheel 28 | . 28 28 Device 14 | . 14 14 Storage 14 | . 14 14 Ballistic Gun 26 | . 26 28 Special Weapon 1 | . 1 . Naked Turns . | . . . Heaviest Build 30 | 15 30 30 Greatest Support 26 | 26 22 20 Greatest Overweight (x) 1 | . 1 1 Average Overweight (x) . | . . 1 Largest Inventory Capacity 15 | 8 15 15 Average Capacity 11 | 7 11 15 Most Carried 15 | 7 15 15 Average Carried 10 | 4 11 14 Final Capacity 15 | 8 15 15 Final Carried 15 | 7 15 14 Class Distribution -------------------- 100% | Mutant Dominant Class ---------------- Mutant | -10/Materials Mutant | -10/Mines Resources | -11 -10 -10 ----------- Run | Scr Mat Min Matter Collected 771 | 323 406 42 Remotely . | . . . Salvage Created 732 | 164 568 . Parts 48 | 12 36 . Haulers Intercepted 2 | . 2 . Recyclers Shooed . | . . . Parts Field Recycled . | . . . Retrieved Matter . | . . . Parts Self-Destructed . | . . . Prevented . | . . . Kills | -11 -10 -10 ------- Run | Scr Mat Min Combat Hostiles Destroyed 9 | . 9 . Guns 9 | . 9 . Classes Destroyed 7 | 2 5 . Worker 2 | . 2 . Tunneler 3 | 3 . . Hauler 2 | . 2 . Recycler 1 | 1 . . Operator 1 | . 1 . Watcher 2 | . 2 . Grunt 9 | . 9 . Best Kill Streak 3 | 3 3 . Combat Bots Only 3 | . 3 . Max Kills in Single Turn 2 | 1 2 . Gunslinging . | . . . Exploded . | . . . Melee . | . . . Uniques/NPCs Destroyed . | . . . Combat | -11 -10 -10 -------- Run | Scr Mat Min Damage Taken 741 | . 476 265 Core 262 | . 184 78 Absorbed by Shields . | . . . Core Remaining (%) 100 | 100 . . Volleys Fired 77 | 11 63 3 Largest 2 | 2 2 2 Hottest 100 | 40 100 40 Shots Fired 151 | 22 123 6 Gun 148 | 22 120 6 Cannon . | . . . Launcher . | . . . Special 3 | . 3 . Kinetic 148 | 22 120 6 Thermal 3 | . 3 . Explosive . | . . . Electromagnetic . | . . . Robot Hit Streak 14 | 3 14 1 Robot Miss Streak 3 | 3 3 2 Penetration Max . | . . . Secondary Targets 1 | . 1 . Max Gunslinging Chain 1 | . 1 . Shots Hit Robots 99 | 12 85 2 Core Hits 37 | 5 31 1 Critical Kills . | . . . Critical Parts Destroyed 1 | . 1 . Critical Strikes 1 | . 1 . Destroy 1 | . 1 . Melee Attacks . | . . . Impact . | . . . Slashing . | . . . Piercing . | . . . Sneak Attacks . | . . . Combat Hostiles . | . . . Follow-up Attacks . | . . . Damage Inflicted 1319 | 170 1123 26 Guns 1319 | 170 1123 26 Cannons . | . . . Explosions . | . . . Melee . | . . . Ramming . | . . . Kinetic 1319 | 170 1123 26 Thermal . | . . . Explosive . | . . . Electromagnetic . | . . . Impact . | . . . Slashing . | . . . Piercing . | . . . Highest Corruption . | . . . Average Corruption . | . . . Corruption Purged . | . . . Corruption Blocked . | . . . Overload Shots . | . . . Overflow Damage . | . . . Projectiles . | . . . Explosions . | . . . Melee . | . . . Knockbacks . | . . . Impact . | . . . Kinetic . | . . . Secondary . | . . . Self-Inflicted Damage . | . . . Shots . | . . . Rammed . | . . . Targets Rammed . | . . . Kicked . | . . . Crushed . | . . . Highest Temperature 56 | . 56 . Average Temperature 23 | . 23 . Received Heat Transfer 267 | . 267 . Siege Activations . | . . . Robots Corrupted . | . . . Combat Hostiles . | . . . Parts Fried . | . . . Impact Corruptions . | . . . Robots Melted . | . . . Combat Hostiles . | . . . Parts Melted . | . . . Heat Transferred . | . . . Parts Sabotaged . | . . . Parts Stolen . | . . . Parts Stripped . | . . . Power Chain Reactions . | . . . Missiles Intercepted . | . . . Alert | -11 -10 -10 ------- Run | Scr Mat Min Peak Influence 335 | 20 335 148 Initial 118 | . 13 118 Average 168 | 8 198 130 Maximum Alert Level 1 | . 1 . Low Security (%) 57 | 100 45 100 Level 1 42 | . 54 . Level 2 . | . . . Level 3 . | . . . Level 4 . | . . . Level 5 . | . . . High Security . | . . . Max Security . | . . . Squads Dispatched 3 | . 3 . Investigation 1 | . 1 . Extermination . | . . . Reinforcement 2 | . 2 . Assault . | . . . Garrison . | . . . Intercept . | . . . Searches Triggered . | . . . Construction Impeded . | . . . Haulers Reinforced . | . . . Active Scanning Responses . | . . . Cargo Convoy Interrupts . | . . . Stealth | -11 -10 -10 --------- Run | Scr Mat Min Distress Signals 1 | . 1 . Communications Jammed . | . . . Distress Signals . | . . . Times Spotted 35 | . 25 10 Peak Tracking Total 18 | . 4 18 Tactical Retreats 4 | . 3 1 Traps | -11 -10 -10 ------- Run | Scr Mat Min Traps Triggered . | . . . Indirectly . | . . . Trap Hack Attempts . | . . . Triggered . | . . . Disarmed . | . . . Reprogrammed . | . . . Reused . | . . . Traps Extracted . | . . . Installed . | . . . Triggered . | . . . Most Traps Carried 3 | . . 3 Machines | -11 -10 -10 ---------- Run | Scr Mat Min Machines Disabled . | . . . Max in Single Turn . | . . . Machines Sabotaged . | . . . Garrisons Compromised . | . . . Overloaded Fab Kills . | . . . Hacking | -11 -10 -10 --------- Run | Scr Mat Min Machines Accessed 8 | . 8 . Terminals 6 | . 6 . Fabricators . | . . . Repair Stations . | . . . Recycling Units 2 | . 2 . Scanalyzers . | . . . Garrison Access . | . . . Total Hacks 25 | . 25 . Successful 17 | . 17 . Failed 8 | . 8 . Catastrophic . | . . . Database Lockouts . | . . . Manual 19 | . 19 . Terminals 21 | . 21 . Fabricators . | . . . Repair Stations . | . . . Recycling Units 4 | . 4 . Scanalyzers . | . . . Garrison Access . | . . . Terminal Hacks 10 | . 10 . Robot Analysis 6 | . 6 . Prototype ID Bank 1 | . 1 . Terminal Index 1 | . 1 . Locate Traps 1 | . 1 . Zone Layout 1 | . 1 . Fabricator Hacks . | . . . Repair Station Hacks . | . . . Recycling Unit Hacks . | . . . Scanalyzer . | . . . Garrison Access Hacks . | . . . Unauthorized Hacks 7 | . 7 . Terminals 3 | . 3 . Botnet 2 | . 2 . Operators 1 | . 1 . Fabricators . | . . . Repair Stations . | . . . Recycling Units 4 | . 4 . Reject 1 | . 1 . Recyclers 1 | . 1 . Mask 1 | . 1 . Tunnel 1 | . 1 . Scanalyzers . | . . . Garrison Access . | . . . Data Cores Recovered . | . . . Used . | . . . Hacking Detections 7 | . 7 . Full Trace Events . | . . . Feedback Events . | . . . Feedback Blocked . | . . . Robot Schematics Acquired . | . . . Robots Built . | . . . Authchips . | . . . Time . | . . . Total Robot Build Rating . | . . . Part Schematics Acquired . | . . . Parts Built . | . . . Authchips . | . . . Time . | . . . Total Part Build Rating . | . . . Parts Repaired . | . . . Time . | . . . Parts Recycled . | . . . Recycled Matter . | . . . Retrieved Matter . | . . . Retrieved Components . | . . . Parts Scanalyzed . | . . . Part Schematics Acquired . | . . . Parts Damaged . | . . . Bothacking | -11 -10 -10 ------------ Run | Scr Mat Min Used RIF Installer . | . . . Robots Hacked . | . . . Non-combat . | . . . Combat . | . . . Robot Hacks Applied . | . . . Relay Couplers Released . | . . . Fabnet Peak Effective % . | . . . Robots Rewired . | . . . Allies Hacked . | . . . Hacks Repelled . | . . . Allies | -11 -10 -10 -------- Run | Scr Mat Min Total Allies . | . . . Largest Group . | . . . Highest-Rated Group . | . . . Highest-Rated Ally . | . . . Total Orders . | . . . Ally Attacks . | . . . Total Damage . | . . . Kills . | . . . Allies Corrupted . | . . . Allies Melted . | . . . Intel | -11 -10 -10 ------- Run | Scr Mat Min Robot Analysis Total 6 | . 6 . Derelict Logs Recovered . | . . . Drone Launches . | . . . Drone Recoveries . | . . . Exploration | -11 -10 -10 ------------- Run | Scr Mat Min Turns Passed 787 | 95 613 79 Spaces Moved 532 | 49 416 67 Core 9 | 9 . . Treads . | . . . Legs . | . . . Wheels 523 | 40 416 67 Hover . | . . . Flight . | . . . Fastest Speed 50 | 50 80 95 Average Speed 88 | 81 88 95 Slowest Speed 100 | 90 100 95 Overloaded Moves . | . . . Propulsion Burnouts . | . . . Robots Hopped . | . . . Cave-ins Triggered . | . . . Exploration Rate (%) 34 | 4 75 25 Regions Visited 2 Branch Regions 1 Pre-discovered Areas 1 | . 1 . Known Exits Taken . | . . . Unknown Exits Taken 2 | 1 1 . Scrap Searched 1 | . . 1 Spaces Dug 3 | . 3 . Terrain Destroyed 3 | . 3 . Melee . | . . . Projectile 3 | . 3 . AOE . | . . . Terrain Rammed . | . . . Walls Destroyed . | . . . Machines Disabled . | . . . Actions | -11 -10 -10 --------- Run | Scr Mat Min Total 690 | 79 530 81 Wait 5 | . 5 . Move 530 | 48 415 67 Hop . | . . . Pick Up 27 | 11 12 4 Fast Attach 6 | 3 3 . Attach 8 | 4 1 3 Detach 1 | . 1 . Swap 20 | 2 18 . Drop 16 | . 12 4 Fire 77 | 11 63 3 Melee . | . . . Ram . | . . . Kick . | . . . Crush . | . . . Escape Stasis . | . . . Rewire . | . . . Trap . | . . . Miscellaneous . | . . . Route ------- -11/Scrapyard -10/Materials (discovered 3 exits: [*Mat x2] / [*Min]) -10/Mines History --------- Turn | Location | Event 15 | -11/Scrapyard | Discovered new exit (range 14) 96 | -11/Scrapyard | Entered Materials 309 | -10/Materials | Build established: Mutant 366 | -10/Materials | Discovered new exit (range 16) 513 | -10/Materials | Discovered new exit (range 15) 545 | -10/Materials | Core integrity fell below 50% 661 | -10/Materials | Discovered new exit (range 15) 709 | -10/Materials | Entered Mines 726 | -10/Mines | Found a hidden stash of uninstalled traps 747 | -10/Mines | Assembled infested the area 782 | -10/Mines | Core integrity fell below 20% 788 | -10/Mines | Destroyed by as-81495 with Assembled Rifle Last Messages --------------- 00718_ Found Beam Cannon. 00718_ Found Med. Matter Pod. 00718_ Found Lrg. Storage Unit. 00718_ Found Lgt. Armor Plating. 00718_ Found 42 Matter. 00719_ Acquired 42 matter. 00719_ Dropped Wheel. 00720_ Acquired Lgt. Armor Plating. 00726_ A stash of uninstalled traps is collected here! 00727_ Dropped Lgt. Armor Plating. 00729_ Acquired Shock Trap. 00730_ Dropped Assault Rifle. 00734_ Acquired Shock Trap. 00747_ ALERT: Infestation in the mines, dispatching Demolisher response squad. 00775_ as-53582 sneak attacks. 00775_ U-05 Engineer system corrupted by crushing effect. 00776_ U-05 Engineer system terminally corrupted. 00786_ Lgt. Nuclear Core destroyed. 00786_ Wheel destroyed. Map ----- +----------------------------------------------------+ | ?????????????????????????????????????????????????? | | ?????????????????????????????????????????????????? | | ????????????????????????????????????????###??????? | | ????????????????????????????????????????? ?????? | | ????????????????????????????????????????? ?????? | | ?????????????????????????????????????????# ?????? | | ?????????????????????????????????????????# ?????? | | ??????????????????????????????????#??###?# ?????# | | ????????????????????????????????????## ## ?##### | | ????????????????????????????????????# ## | | ??????????????????????????????? ##### # | | ??????????????????????????????? | | ??????????????????????????????? # | | ???????????????????????????????????### ## | | ????????????????##??????????#????????## #? | | ????????????????? ##?????#????????????#### ##? | | ????????????????? #?????????????????#??### !###? | | ??????????????????" #?????????????????????#=!#??? | | ??????????????????? ?????????????????????#] #??? | | ???????????????????? ????????????????????# #??? | | ????????????????????? ??????????????????### ##?# | | ?????????????????????? ???????#???????### ## | | ??????????????????????# ??????????????## &! | | ?????????????????????## ???#???????#?# [[ | | ?????????????????????# ##???#???????# | | ?????????????????????# @##??????#???## #### | | ?????????????????????# aa############## #??? | | ?????????????????????## a ## ### #??? | | ????????????????????##### %##### #?## ##??? | | ????????????????????????## ##???# #??# ##??? | | ?????????????????????????########????# #??# #???? | | ?????????????????????????????????????# #??# ##### | | ?????????????????????????????????????# #??# | | ???????????????????????#?????????????# #??# ##### | | ?????????????????????????????????????# #### #???? | | ?????????????????????????????????????# #???? | | ?????????????????????????????????????###### #???? | | ?????????????????? ????????????????????#### #???? | | ???????????????????????????????????#???# #?#?? | | ???????????????????????????????#????#??# #####???? | | ???????????????????????????????????????# #???????? | | ???????????????????????????????????????# #???????? | | ???????????????????????????????#??????? #???????? | | ??????????????????????????????????????? ##???????? | | ??????????????????????????????????????? ?????????? | | ??????????????????????????????????????? ?????????? | | ?????????????????????????????????????? ?????????? | | ?????????????????????????????????????? ?????????? | | ??????????????????????????????????#??? ?????????? | | ?????????????????????????????????????? ? ???????? | +----------------------------------------------------+ Best States ------------- Heat Dissipation 47 Energy Generation 14 Energy Capacity 250 Matter Stores 277 Matter Capacity 300 Sight Range 16 Terrain Scan Range 16 Terrain Scan Density 10 Evasion (%) 44 Item Schematics ----------------- None Robot Schematics ------------------ None Fabricated ------------ Nothing Alien Tech Used ----------------- None Achievements -------------- None Challenges ------------ None Game ------ Seed SubatomicChargeFalx Manual? 0 Play Time 00:12:33 Cumulative 647.3 hours Start 2022.05.22 @ 13:38:33 End 2022.05.22 @ 13:49:39 Sessions 1 Manual Loads 0 Difficulty Rogue Special Mode None Game No. 332 Rogue 205 Adventurer 125 Explorer 2 Win Type - Total 69 Types 60/3/3/1/1/0/0/0/1 Lore% 76 Gallery% 86 Achievement% 71 Wizard Run 0 Options --------- ASCII 0 Keyboard 1 Movement Numpad Keybinds 0 Fullscreen 1 Font 36/TerminusFine Map View 76x50 Tactical HUD 1 Map Filters NONE Filters NONE Steam 1 RUN: 10d67e05-6fe7-4774-9ef0-eb745cbd8c94